{"text_format":"1","workbook":"xlsx","n_sheets":1,"sheets":["Пр.№4"],"not_rendered":{"charts":0,"images":0,"macros":0,"external_links":0,"defined_names":2,"comments":0,"pivot_tables":0},"unopened":[],"bounds":{"document_bytes":16777216,"sheet_cells":100000,"rows_first":2000,"rows_last":500,"rows_between":2000,"halvings":0,"cell_chars":16384,"cell_head_chars":4096},"cells_cut":0,"cells_raw":0,"read":"whole","date_system":"1900"}

{"sheet":"Пр.№4","index":0,"n_rows":214,"n_cols":10,"rows_kept":214,"cut":false,"hidden":false,"merged":[[5,2,5,7],[215,5,215,7],[12,0,12,7],[13,0,13,7],[10,0,10,7],[11,0,11,7]]}
[]
[]
[null,null,null,null,"  ","Приложение №4"]
[null,null,"к  решению Совета депутатов Борковского сельского поселения"]
[null,null," \" О бюджете  Борковского сельского поселения на 2016 год\" "]
[null,null,"от 24.12.2016 №18"]
[]
[]
[]
[]
[]
["Ведомственная  структура расходов бюджета Борковского сельского поселения"]
[" на 2016 год"]
[]
[null,null,null,null,null,null,null,"(тыс. рублей)"]
["Наименование",null,"Мин","Рз","ПР","ЦСР","ВР","Сумма","2009 год","2010 год"]
["Администрация Борковского сельского поселения",null,"335"]
[]
["Общегосударственные вопросы",null,"335","01",null,null,null,{"$f":"H22+H34+H67+H76+H56+H80","v":4093.7500000000005},{"$f":"I22+#REF!+#REF!+I34+#REF!++#REF!+#REF!+#REF!+#REF!","v":{"$error":"#REF!"}},{"$f":"J22+#REF!+#REF!+J34+#REF!++#REF!+#REF!+#REF!+#REF!","v":{"$error":"#REF!"}}]
["Функционирование высшего должностного лица "]
["субъекта Российской Федерации и  "]
["муниципального образования",null,"335",{"$f":"D$19","v":"01"},"02",null,null,{"$f":"H23","v":621.90000000000009},{"$f":"#REF!","v":{"$error":"#REF!"}},{"$f":"#REF!","v":{"$error":"#REF!"}}]
["Глава муниципального образования",null,"335",{"$f":"D$19","v":"01"},{"$f":"E$22","v":"02"},"20 1 00 01000",null,{"$f":"H25","v":621.90000000000009},{"$f":"I26","v":707},{"$f":"J26","v":724}]
["Расходы на обеспечение функций органов "]
["местного самоуправления",null,null,null,null,null,null,{"$f":"H26+H30+H29","v":621.90000000000009}]
["Фонд оплаты труда государственных (муниципальных) органов",null,"335",{"$f":"D$19","v":"01"},{"$f":"E$22","v":"02"},"20 1 00 01000","121",451,707,724]
["Взносы по обязательном у социальному страхованию на выплаты"]
["денежного содержания и иные выплаты работникам"]
["государственных (муниципальных) органов",null,"335","01","02","20 1 00 01000","129",130.80000000000001]
["Иные выплаты персоналу, за исключением фонда оплаты труда",null,"335",{"$f":"D$19","v":"01"},{"$f":"E$22","v":"02"},"20 1 00 01000","122",40.1]
["Функционирование Правительства Российской "]
["Федерации, высших исполнительных органов"]
["государственной власти субъектов Российской  "]
["Федерации, местных администраций",null,"335",{"$f":"D$19","v":"01"},"04",null,null,{"$f":"H38","v":3098.1000000000004},{"$f":"I38","v":{"$error":"#REF!"}},{"$f":"J38","v":{"$error":"#REF!"}}]
["Руководство и управление в сфере установленных "]
["функций органов государственной власти субъектов"]
["Российской Федерации и органов местного"]
["самоуправления",null,"335",{"$f":"D$19","v":"01"},{"$f":"E34","v":"04"},"20 2 00 01000",null,{"$f":"H40","v":3098.1000000000004},{"$f":"#REF!+I39","v":{"$error":"#REF!"}},{"$f":"#REF!+J39","v":{"$error":"#REF!"}}]
["Расходы на содержание аппарата органов местного ",null,null,null,null,null,null,null,{"$f":"I49","v":109153},{"$f":"J49","v":111534}]
["самоуправления",null,"335",{"$f":"D$19","v":"01"},{"$f":"E34","v":"04"},"20 2 00 01000",null,{"$f":"H41+H45+H49+H47+H44+H53+H54+H55","v":3098.1000000000004}]
["Фонд оплаты труда государственных (муниципальных) органов",null,"335",{"$f":"D$19","v":"01"},"04","20 2 00 01000","121",1787.8]
["Взносы по обязательном у социальному страхованию на выплаты"]
["денежного содержания и иные выплаты работникам"]
["государственных (муниципальных) органов",null,"335","01","04","20 2 00 01000","129",520.79999999999995]
["Иные выплаты персоналу, за исключением фонда оплаты труда",null,"335",{"$f":"D$19","v":"01"},"04","20 2 00 01000","122",160.4]
["Закупка товаров, работ, услуг в области "]
["информационных технологий ",null,"335","01","04","20 2 00 01000","242",195]
["Прочая закупка товаров,работ и услуг для муниципальных"]
["нужд",null,"335",{"$f":"D$19","v":"01"},{"$f":"E34","v":"04"},"20 2 00 01000","244",385,{"$f":"41535+18149+427+17648+30000+534+860","v":109153},{"$f":"42995+18483+456+19031+30000+569","v":111534}]
["Областной резервный фонд на ликвидацию угрозы и"]
["последствий чрезвычайных ситуаций",null,null,{"$f":"D$19","v":"01"},{"$f":"#REF!","v":{"$error":"#REF!"}},{"$f":"#REF!","v":{"$error":"#REF!"}},null,{"$f":"H52","v":0},{"$f":"I52","v":0},{"$f":"J52","v":0}]
["Прочие расходы",null,null,{"$f":"D$19","v":"01"},{"$f":"#REF!","v":{"$error":"#REF!"}},{"$f":"#REF!","v":{"$error":"#REF!"}},"013",{"$f":"3317-3317","v":0},{"$f":"3543-3543","v":0},{"$f":"3773-3773","v":0}]
["Уплата налога на имущество организаций",null,"335",{"$f":"D$19","v":"01"},"04","20 2 00 01000","851",1.5]
["Уплата прочих налогов, сборов и иных обязательных платежей",null,"335",{"$f":"D$19","v":"01"},"04","20 2 00 01000","852",1.8]
["Уплата иных платежей",null,"335",{"$f":"D$19","v":"01"},{"$f":"#REF!","v":{"$error":"#REF!"}},"20 2 00 01000","853",45.8]
["Субвенция на возмещению затрат по содержанию штатных ",null,"335","01","04","20 2 00 70280",null,{"$f":"H61+H66+H64","v":151.69999999999999}]
["единиц, осуществляющих переданные отдельные государствен- "]
["ные полномочия области по организации деятельности по сбору "]
["( в том числе раздельному сбору) и транспортированию твердых"]
["коммунальных отходов городских и сельских поселений"]
["Фонд оплаты труда государственных (муниципальных) органов",null,"335","01","04","20 2 00 70280","121",111.6]
["Взносы по обязательном у социальному страхованию на выплаты"]
["денежного содержания и иные выплаты работникам"]
["государственных (муниципальных) органов",null,"335","01","04","20 2 00 70280","129",32.6]
["Прочая закупка товаров,работ и услуг для муниципальных"]
["нужд",null,"335","01","04","20 2 00 70280","244",7.5]
["Обеспечение деятельности финансовых, налоговых ",null,"335","01","06",null,null,{"$f":"+H74","v":217.05}]
["и таможенных органов и органов финансового (финансово-"]
["бюджетного) надзора "]
["Иные межбюджетные трансферты из бюджетов поселений"]
["бюджету муниципального района на возмещение затрат по "]
["содержанию штатных единиц,осуществляющих переданные"]
["полномочия поселения по внешнему муниципальному"]
["финансовому контролю",null,"335","01","06","20 4 00 93020",null,{"$f":"+H75","v":217.05}]
["Иные межбюджетные трансферты ",null,"335","01","06","20 4 00 93020","540",217.05]
["Резервные фонды",null,"335","01","11",null,null,{"$f":"H78","v":1}]
["Резервные фонды  местных администраций ",null,"335","01","11","20 5 00 25030",null,1]
["Резервные средства",null,"335","01","11","20 5 00 25030","870",{"$f":"H77","v":1}]
[]
["Другие общегосударственные вопросы",null,"335","01","13",null,null,4]
["Содержание и обслуживание казны муниципального "]
["образования",null,"335","01","13","20 5 00 25150",null,4]
["Прочая закупка товаров,работ и услуг для муниципальных"]
["нужд",null,"335","01","13","20 5 00 25150","244",4]
["Национальная оборона",null,"335","02",null,null,null,{"$f":"+H86","v":178}]
["Мобилизационная и вневойсковая подготовка",null,"335","02","03",null,null,{"$f":"+H87","v":178}]
["Осуществление первичного воинского учета на",null,"335","02","03","20 5 00 51180",null,{"$f":"H89+H94+H92","v":178}]
["территории,где отсутствуют воинские комиссариаты"]
["Фонд оплаты труда государственных (муниципальных) органов",null,"335","02","03","20 5 00 51180","121",129.69999999999999]
["Взносы по обязательном у социальному страхованию на выплаты"]
["денежного содержания и иные выплаты работникам"]
["государственных (муниципальных) органов",null,"335","02","03","20 5 00 51180","129",39.200000000000003]
["Прочая закупка товаров,работ и услуг для муниципальных"]
["нужд",null,"335","02","03","20 5 00 51180","244",9.1]
["Национальная безопасность и ",null,"335","03",null,null,null,{"$f":"H97","v":69}]
["правоохранительная деятельность"]
["Обеспечение пожарной безопасности",null,"335","03","10",null,null,{"$f":"+H99","v":69},{"$f":"#REF!+#REF!+I99+#REF!","v":{"$error":"#REF!"}},{"$f":"#REF!+#REF!+J99+#REF!","v":{"$error":"#REF!"}}]
["Пожарная безопасность в рамках муниципальной "]
["программы \"Устойчивое развитие территории Борковского",null,null,null,null,null,null,{"$f":"H100","v":69},{"$f":"#REF!+I100+#REF!","v":{"$error":"#REF!"}},{"$f":"#REF!+J100+#REF!","v":{"$error":"#REF!"}}]
["сельского поселения на 2014-2016гг.\"",null,"335",{"$f":"D$97","v":"03"},"10","01 0 00 25110",null,69,{"$f":"I101","v":238496},{"$f":"J101","v":254189}]
["Прочая закупка товаров,работ и услуг для муниципальных",null,null,null,null,null,null,null,{"$f":"I102","v":238496},{"$f":"J102","v":254189}]
["нужд",null,"335",{"$f":"D$97","v":"03"},"10","01 0 00 25110","244",69,{"$f":"24567+213947-18","v":238496},{"$f":"27116+227094-21","v":254189}]
["привлеченным кредитам в российских кредитных"]
["организациях на развитие животноводства"]
["Субсидирование процентных ставок по ",null,null,{"$f":"#REF!","v":{"$error":"#REF!"}},{"$f":"#REF!","v":{"$error":"#REF!"}},{"$f":"#REF!","v":{"$error":"#REF!"}},"356"]
["привлеченным кредитам в российских кредитных"]
["организациях на развитие малых форм "]
["хозяйствования в агропромышленном комплексе"]
["Субсидирование части затрат на приобретение",null,null,{"$f":"#REF!","v":{"$error":"#REF!"}},{"$f":"#REF!","v":{"$error":"#REF!"}},{"$f":"#REF!","v":{"$error":"#REF!"}},"357"]
["дизельного топлива, использованного на "]
["проведение сезонных сельскохозяйственных работ"]
["Субсидирование процентных ставок по кредитам, ",null,null,{"$f":"#REF!","v":{"$error":"#REF!"}},{"$f":"#REF!","v":{"$error":"#REF!"}},{"$f":"#REF!","v":{"$error":"#REF!"}},"355"]
["полученным в российских кредитных организациях "]
["на развитие животноводства и промышленного "]
["рыбоводства"]
["Субсидирование процентных ставок по кредитам, ",null,null,{"$f":"#REF!","v":{"$error":"#REF!"}},{"$f":"#REF!","v":{"$error":"#REF!"}},{"$f":"#REF!","v":{"$error":"#REF!"}},"356"]
["полученным в российских кредитных организациях, "]
["и займам, полученным в сельскохозяйственных"]
["кредитных потребительских кооперативах, "]
["на развитие малых форм хозяйствования в"]
["агропромышленном комплексе"]
["Субсидии на поддержку племенного ",null,null,{"$f":"#REF!","v":{"$error":"#REF!"}},{"$f":"#REF!","v":{"$error":"#REF!"}},{"$f":"#REF!","v":{"$error":"#REF!"}},"357"]
["животноводства"]
["Возмещение части затрат на уплату процентов",null,null,{"$f":"#REF!","v":{"$error":"#REF!"}},{"$f":"#REF!","v":{"$error":"#REF!"}},{"$f":"#REF!","v":{"$error":"#REF!"}},"627"]
["по кредитам, полученным на срок до пяти лет"]
["в российских кредитных организациях "]
["на приобретение племенного скота, племенного"]
["материала рыб, техники и оборудования"]
["для животноводческих комплексов и организаций,"]
["осуществляющих промышленное рыбоводство"]
["Национальная экономика",null,null,{"$f":"#REF!","v":{"$error":"#REF!"}},{"$f":"#REF!","v":{"$error":"#REF!"}},{"$f":"#REF!","v":{"$error":"#REF!"}},"628"]
["Национальная экономика",null,"335","04",null,null,null,{"$f":"H133","v":1981.6}]
["Дорожное хозяйство(дорожные фонды)",null,"335","04","09",null,null,{"$f":"H137+H142+H146","v":1981.6}]
["Дорожное хозяйство в рамках муниципальной  программы"]
["\"Устойчивое развитие территории Борковского сельского"]
["поселения на 2014-2016гг.\"",null,"335","04","09","01 0 00 00000",null,1900]
["Капитальный ремонт и ремонт автомобильных дорог общего пользования ",null,"335","04","09","01 0 00 S5170",null,{"$f":"H140","v":658.6}]
["пользования местного значения в границах населенных пунктов "]
["Прочая закупка товаров,работ и услуг для "]
["муниципальных нужд",null,"335","04","09","01 0 00 S5170","244",658.6]
["Содержание автомобильных дорог общего пользования "]
["местного значения в границах населенных пунктов",null,"335","04","09","01 0 00 25160",null,200]
["Прочая закупка товаров,работ и услуг для муниципальных"]
["нужд",null,"335","04","09","01 0 00 25160","244",200,"09","01 0 2 516"]
["Осуществление дорожной деятельности в отношении "]
["автомобильных дорог общего пользования местного значения",null,"335","04","09","01 0 00 71520",null,{"$f":"H148","v":1123}]
["Прочая закупка товаров,работ и услуг для "]
["муниципальных нужд",null,"335","04","09","01 0 00 71520","244",1123]
["Жилищно-коммунальное хозяйство",null,"335","05",null,null,null,{"$f":"H150+H155","v":3015.5}]
["Коммунальное хозяйство",null,"335","05","02",null,null,{"$f":"+H153","v":300}]
["Компенсация выпадающих доходов организациям,"]
["предоставляющим населению услуги "]
["общественных бань ",null,"335","05","02","01 0 00 62200",null,{"$f":"H154","v":300}]
["Субсидии юридическим лицам",null,"335","05","02","01 0 00 62200","810",300]
["Благоустройство",null,"335","05","03",null,null,{"$f":"+H159+H161+H165+H168","v":2715.5}]
["Организация уличного освещения с использованием ",null,null,null,null,null,null,null,{"$f":"#REF!","v":{"$error":"#REF!"}},{"$f":"#REF!","v":{"$error":"#REF!"}}]
["новых технологий",null,"335","05","03","01 0 00 25190",null,{"$f":"H159","v":1989}]
["Прочая закупка товаров,работ и услуг для муниципальных"]
["нужд",null,"335","05","03","01 0 00 25190","244",1989]
["Озеленение территории поселения",null,"335","05","03","01 0 00 25210",null,{"$f":"H161","v":140}]
["Прочая закупка товаров,работ и услуг для муниципальных",null,"335","05","03","01 0 00 25210","244",140]
["нужд"]
["Организация и содержание мест захоронения ",null,"335","05","03","01 0 00 25220","244",{"$f":"H165","v":150}]
["Прочая закупка товаров,работ и услуг для муниципальных"]
["нужд",null,"335","05","03","01 0 00 25220","244",150,{"$f":"I166","v":{"$error":"#REF!"}},{"$f":"J166","v":{"$error":"#REF!"}}]
["Прочие мероприятия по благоустройству",null,"335","05","03","01 0 00 25220",null,{"$f":"H168","v":436.5},{"$f":"#REF!","v":{"$error":"#REF!"}},{"$f":"#REF!","v":{"$error":"#REF!"}}]
["Прочая закупка товаров,работ и услуг для муниципальных"]
["нужд",null,"335","05","03","01 0 00 25230","244",436.5]
["Образование",null,"335","07",null,null,null,{"$f":"H170+H175","v":15.4}]
["Молодежная политика и оздоровление детей",null,"335","07","07",null,null,{"$f":"H171","v":4}]
["Организационно-воспитательная работа с молодежью",null,"335","07","07","20 5 00 25000",null,{"$f":"H172","v":4},{"$f":"I172+#REF!+#REF!","v":{"$error":"#REF!"}},{"$f":"J172+#REF!+#REF!","v":{"$error":"#REF!"}}]
["Реализация  мероприятий для детей и молодежи",null,"335","07",{"$f":"E$171","v":"07"},"20 5 00 25090",null,{"$f":"H174","v":4},{"$f":"I173","v":{"$error":"#REF!"}},{"$f":"J173","v":{"$error":"#REF!"}}]
["Прочая закупка товаров,работ и услуг для муниципальных",null,null,null,null,null,null,null,{"$f":"#REF!+I174","v":{"$error":"#REF!"}},{"$f":"#REF!+J174","v":{"$error":"#REF!"}}]
["нужд",null,"335","07","07","20 5 00 25090","244",4]
["Другие вопросы в области образования",null,"335","07","09",null,null,{"$f":"H180+H187","v":11.4}]
["Мероприятия на организацию профессионального  "]
[" образования и дополнительного профессионального"]
["образования выборных должностных лиц,"]
["муниципальных служащих и служащих городских и "]
["сельских поселений",null,"335","07","09","20 5 00 S5370",null,2]
["Прочая закупка товаров,работ и услуг для муниципальных"]
["нужд",null,"335","07","09","20 5 00 S5370","244",2]
["Субсидии бюджетам муниципальных районов и городского   "]
["округа на организацию профессионального образования"]
["и дополнительного профессионального образования "]
["выборных должностных лиц, служащих и муниципальных "]
["служащих Новгородской области",null,"335","07","09","20 5 00 72280",null,9.4]
["Прочая закупка товаров,работ и услуг для муниципальных"]
["нужд",null,"335","07","09","20 5 00 72280","244",9.4]
[]
["Культура, кинематография, средства "]
["массовой информации",null,"335","08",null,null,null,{"$f":"H193","v":2336.4}]
["Культура",null,"335","08","01",null,null,{"$f":"H194+H199","v":2336.4},{"$f":"#REF!+#REF!+#REF!+#REF!","v":{"$error":"#REF!"}},{"$f":"#REF!+#REF!+#REF!+#REF!","v":{"$error":"#REF!"}}]
["Дворцы и дома культуры",null,"335",{"$f":"D$193","v":"08"},"01","20 5 00 14000",null,{"$f":"H198","v":2334.4}]
["Обеспечение деятельности  подведомственных учреждений",null,"335","08","01","20 5 00 14010",null,{"$f":"+H198","v":2334.4}]
["Субсидии автономным учреждениям на финансовое "]
["обеспечение муниципального задания на оказание "]
["муниципальных услуг (выполнение работ)",null,"335","08","01","20 5 00 14010","621",2334.4]
["Мероприятия в области культуры",null,"335","08","01","20 5 00 25050",null,{"$f":"H201","v":2}]
["Прочая закупка товаров,работ и услуг для муниципальных",null,null,null,null,null,null,null,{"$f":"I201","v":{"$error":"#REF!"}},{"$f":"J201","v":{"$error":"#REF!"}}]
["нужд",null,"335",{"$f":"D$193","v":"08"},{"$f":"E194","v":"01"},"20 5 00 25050","244",2,{"$f":"#REF!","v":{"$error":"#REF!"}},{"$f":"#REF!","v":{"$error":"#REF!"}}]
["Социальная политика",null,"335","10",null,null,null,{"$f":"H203","v":252.5}]
["Пенсионное обеспечение ",null,"335","10","01",null,null,{"$f":"+H204","v":252.5}]
["Публичные обязательства",null,"335","10","01","20 5 00 82100",null,{"$f":"H206","v":252.5}]
["Доплаты к пенсиям муниципальных служащих, служащих, "]
["замещавших муниципальные должности",null,"335","10","01","20 5 00 82100",null,{"$f":"+H207","v":252.5}]
["Иные пенсии, социальные доплаты к пенсиям",null,"335","10","01","20 5 00 82100","312",252.5]
["Физическая культура и спорт",null,"335","11",null,null,null,{"$f":"H209","v":18}]
["Физическая культура ",null,"335","11","01",null,null,{"$f":"+H210","v":18},{"$f":"#REF!+#REF!+#REF!+#REF!+#REF!+#REF!+#REF!","v":{"$error":"#REF!"}},{"$f":"#REF!+#REF!+#REF!+#REF!+#REF!+#REF!+#REF!","v":{"$error":"#REF!"}}]
["Мероприятия в области физической культуры и спорта",null,"335",{"$f":"D$209","v":"11"},"01","20 5 00 25100",null,{"$f":"H212","v":18},{"$f":"14337+884","v":15221},{"$f":"15266+938","v":16204}]
["Прочая закупка товаров,работ и услуг для муниципальных"]
["нужд",null,"335",{"$f":"D$209","v":"11"},"01","20 5 00 25100","244",18,{"$f":"#REF!","v":{"$error":"#REF!"}},{"$f":"#REF!","v":{"$error":"#REF!"}}]
["ВСЕГО РАСХОДОВ:",null,null,null,null,null,null,{"$f":"H19+H85+H97+H132+H149+H192+H208+H169+H202","v":11960.15}]
[null,null,null,null,null,null,null," ",{"$f":"I19+I97+#REF!+#REF!+#REF!+#REF!+I193+I209+#REF!+#REF!+#REF!","v":{"$error":"#REF!"}},{"$f":"J19+J97+#REF!+#REF!+#REF!+#REF!+J193+J209+#REF!+#REF!+#REF!","v":{"$error":"#REF!"}}]